lending/lending_fUSD_20250508
["ID","MTS","AMOUNT","RATE_DAILY","PERIOD"]
[360305311,1746735046324,-150.0,0.00028708,7]
[360305312,1746735046333,-28937.7977649,0.00028708,3]
[360305313,1746735046344,-2812.68241167,0.00028716,2]
[360305314,1746735046354,-151.0,0.00028718,7]
[360305315,1746735046364,-151.0,0.00028718,7]
[360305316,1746735046374,-151.0,0.00028718,7]
[360305317,1746735046384,-163.29303,0.00028718,7]
[360305319,1746735046394,-151.0,0.00028718,7]
[360305321,1746735046403,-2106.901667,0.00028718,7]
[360305322,1746735046414,-2106.901667,0.00028718,7]
[360305323,1746735046423,-151.0,0.00028718,7]
[360305324,1746735046434,-704.594677,0.00028718,7]
[360305325,1746735046444,-151.0,0.00028718,7]
[360305326,1746735046453,-704.594677,0.00028718,7]
[360305327,1746735046463,-524.67713,0.00028718,7]
[360305328,1746735046474,-524.67713,0.00028718,7]
[360305329,1746735046483,-1151.861518,0.00028718,7]
[360305330,1746735046493,-1151.861518,0.00028718,7]
[360305331,1746735046503,-286.238583,0.00028718,7]
[360305332,1746735046513,-286.238583,0.00028718,7]
[360305333,1746735046524,-163.009931,0.00028718,7]
[360305334,1746735046534,-163.009931,0.00028718,7]
[360305335,1746735046543,-22932.2740876,0.00028719,3]
[360305336,1746735046554,-342.31643738,0.00028722,7]
[360305337,1746735046564,-150.0,0.00028733,7]
[360305338,1746735046574,-150.0,0.00028739,7]
[360305339,1746735046583,-150.0,0.00028744,7]
[360305340,1746735046593,-342.31643738,0.00028752,7]
[360305341,1746735046603,-150.0,0.00028771,7]
[360305342,1746735046612,-342.31643738,0.00028782,7]
[360305343,1746735046623,-150.0,0.00028802,7]
[360305344,1746735046633,-150.0,0.00028804,7]
[360305345,1746735046643,-150.0,0.0002881,7]
[360305346,1746735046654,-150.0,0.0002881,7]
[360305347,1746735046663,-342.31643738,0.00028812,7]
[360305348,1746735046674,-151.0,0.00028831,7]
[360305349,1746735046684,-243.363729,0.00028831,7]
[360305350,1746735046694,-12260.86363296,0.00028831,19]
[360305351,1746735046704,-150.0,0.00028834,7]
[360305352,1746735046713,-342.31643738,0.00028842,7]
[360305353,1746735046723,-158.55016378,0.00028846,2]
[360305354,1746735046733,-150.0,0.00028849,7]
[360305355,1746735046744,-150.0,0.00028849,7]
[360305356,1746735046754,-150.0,0.00028849,7]
[360305357,1746735046764,-1569.114047,0.00028851,4]
[360305358,1746735046773,-150.0,0.00028864,7]
[360305359,1746735046783,-150.0,0.00028865,7]
[360305360,1746735046793,-342.31643738,0.00028872,7]
[360305361,1746735046804,-150.0,0.00028888,7]
[360305362,1746735046813,-150.0,0.00028897,7]
[360305363,1746735046822,-250.0,0.00028898,2]
[360305364,1746735046832,-4100.0,0.000289,10]
[360305365,1746735046841,-342.31643738,0.00028902,7]
[360305366,1746735046851,-150.0,0.00028906,7]
[360305367,1746735046860,-150.0,0.00028925,7]
[360305368,1746735046870,-150.0,0.00028928,7]
[360305369,1746735046880,-342.31643738,0.00028932,7]
[360305370,1746735046890,-167.35,0.00028956,2]
[360305371,1746735046900,-11885.02723894,0.00028956,2]
[360305372,1746735046909,-150.0,0.00028959,7]
[360305373,1746735046918,-342.31643738,0.00028961,7]
[360305374,1746735046928,-150.0,0.00028966,7]
[360305375,1746735046938,-150.0,0.00028966,7]
[360305376,1746735046948,-150.0,0.00028985,7]
[360305377,1746735046958,-150.0,0.00028991,7]
[360305378,1746735046968,-342.31643738,0.00028991,7]
[360305379,1746735046978,-550.0,0.00029,2]
[360305380,1746735046988,-2018.1,0.00029,2]
[360305381,1746735046997,-342.31643738,0.00029021,7]
[360305382,1746735047007,-150.0,0.00029022,7]
[360305383,1746735047017,-150.0,0.00029044,7]
[360305384,1746735047027,-150.0,0.00029046,7]
[360305385,1746735047038,-342.31643738,0.00029051,7]
[360305386,1746735047048,-150.0,0.00029054,7]
[360305387,1746735047058,-342.31643738,0.00029081,7]
[360305388,1746735047068,-150.0,0.00029085,7]
[360305389,1746735047080,-150.0,0.00029096,7]
[360305390,1746735047090,-150.0,0.00029096,7]
[360305391,1746735047100,-150.0,0.00029096,7]
[360305392,1746735047112,-762.0,0.00029099,2]
[360305393,1746735047123,-150.0,0.00029106,7]
[360305394,1746735047133,-342.31643738,0.00029111,7]
[360305395,1746735047143,-150.0,0.00029117,7]
[360305396,1746735047153,-150.0,0.00029122,7]
[360305397,1746735047164,-150.0,0.00029122,7]
[360305398,1746735047175,-150.0,0.00029132,2]
[360305399,1746735047185,-150.0,0.00029134,7]
[360305400,1746735047194,-2110.0,0.00029137,2]
[360305401,1746735047204,-342.31643738,0.00029141,7]
[360305402,1746735047214,-299.0,0.00029141,5]
[360305403,1746735047223,-150.0,0.00029148,7]
[360305404,1746735047233,-236.32330941,0.00029151,2]
[360305405,1746735047242,-150.0,0.00029166,7]
[360305406,1746735047251,-342.31643738,0.00029171,7]
[360305407,1746735047261,-150.0,0.0002918,7]
[360305408,1746735047271,-28937.7977649,0.00029185,3]
[360305409,1746735047281,-22932.2740876,0.00029185,3]
[360305410,1746735047290,-2008.14018289,0.00029196,2]
[360305411,1746735047300,-199.95928,0.00029196,7]
[360305412,1746735047309,-199.95928,0.00029196,7]
[360305413,1746735047318,-151.0,0.00029196,7]
[360305414,1746735047328,-263.88703,0.00029196,7]
[360305415,1746735047338,-263.88703,0.00029196,7]
[360305416,1746735047347,-150.0,0.000292,7]
[360305417,1746735047356,-342.31643738,0.000292,7]
[360305418,1746735047367,-1850.177,0.00029205,22]
[360305419,1746735047376,-190.662,0.00029205,22]
[360305420,1746735047386,-150.0,0.00029211,7]
[360305421,1746735047395,-150.0,0.00029227,7]
[360305422,1746735047405,-342.31643738,0.0002923,7]
[360305423,1746735047414,-150.0,0.00029243,7]
[360305424,1746735047423,-342.31643738,0.0002926,7]
[360305425,1746735047433,-150.0,0.00029274,7]
[360305426,1746735047443,-150.0,0.00029278,7]
[360305427,1746735047452,-150.0,0.00029278,7]
[360305428,1746735047462,-150.0,0.00029287,7]
[360305429,1746735047471,-342.31643738,0.0002929,7]
[360305430,1746735047481,-200.0,0.00029293,2]
[360305431,1746735047490,-150.0,0.00029306,7]
[360305432,1746735047499,-342.31643738,0.0002932,7]
[360305433,1746735047509,-152.0,0.00029325,4]
[360305434,1746735047519,-150.0,0.00029337,7]
[360305435,1746735047528,-1035.50121157,0.00029341,15]
[360305436,1746735047538,-969.961703,0.00029342,7]
[360305437,1746735047548,-969.961703,0.00029342,7]
[360305438,1746735047558,-151.0,0.00029342,7]
[360305439,1746735047568,-20118.81634592,0.00029342,2]
[360305440,1746735047578,-150.0,0.00029342,7]
[360305441,1746735047587,-150.0,0.00029342,7]
[360305442,1746735047597,-7921.43313015,0.00029346,3]
[360305443,1746735048914,-266.77209352,0.00029346,3]
[360305444,1746735048926,-321.24,0.00029346,3]
[360305445,1746735049105,-1918.39983812,0.00022003,2]
[360305446,1746735049169,-47.21797237,0.00022003,2]
[360305447,1746735049355,-8626.86797745,0.00022003,2]
[360305448,1746735049366,-14422.82886393,0.00029346,3]
[360305449,1746735049376,-150.0,0.00029347,7]
[360305450,1746735049386,-342.31643738,0.0002935,7]
[360305451,1746735049397,-28937.7977649,0.00029352,3]
[360305452,1746735049407,-150.0,0.00029355,7]
[360305453,1746735049417,-150.0,0.00029361,7]
[360305454,1746735049426,-524.67713,0.00029362,7]
[360305455,1746735049436,-524.67713,0.00029362,7]
[360305456,1746735049446,-163.009931,0.00029362,7]
[360305457,1746735049457,-163.009931,0.00029362,7]
[360305458,1746735049467,-22932.2740876,0.00029363,3]
[360305459,1746735049476,-151.0,0.00029366,7]
[360305460,1746735049485,-151.0,0.00029366,7]
[360305461,1746735049495,-151.0,0.00029366,7]
[360305462,1746735049504,-151.0,0.00029366,7]
[360305463,1746735049514,-2106.901667,0.00029366,7]
[360305464,1746735049524,-2106.901667,0.00029366,7]
[360305465,1746735049533,-151.0,0.00029366,7]
[360305466,1746735049544,-704.594677,0.00029366,7]
[360305467,1746735049555,-151.0,0.00029366,7]
[360305468,1746735049565,-704.594677,0.00029366,7]
[360305469,1746735049575,-1151.861518,0.00029366,7]
[360305470,1746735049584,-1151.861518,0.00029366,7]
[360305471,1746735049594,-286.238583,0.00029366,7]
[360305472,1746735049603,-286.238583,0.00029366,7]
[360305473,1746735049613,-151.0,0.00029367,7]
[360305474,1746735049623,-243.363729,0.00029367,7]
[360305475,1746735049633,-150.0,0.00029369,7]
[360305476,1746735049644,-20465.95811866,0.00029373,2]
[360305477,1746735049653,-953.2500028,0.00029379,5]
[360305478,1746735049663,-342.31643738,0.0002938,7]
[360305479,1746735049673,-2000.0,0.00029382,4]
[360305480,1746735049683,-762.0,0.00029399,2]
[360305481,1746735049693,-1000.0,0.000294,5]
[360305482,1746735049703,-1002.0,0.000294,5]
[360305483,1746735049713,-1000.0,0.000294,5]
[360305484,1746735049723,-150.0,0.000294,7]
[360305485,1746735049733,-150.0,0.00029408,7]
[360305486,1746735049743,-342.31643738,0.0002941,7]
[360305487,1746735049753,-150.0,0.00029432,7]
[360305488,1746735049763,-150.0,0.00029433,7]
[360305489,1746735049774,-150.0,0.00029433,7]
[360305490,1746735049785,-342.31643738,0.0002944,7]
[360305491,1746735049794,-28937.7977649,0.00029459,3]
[360305492,1746735049806,-150.0,0.00029463,7]
[360305493,1746735049818,-150.0,0.00029468,7]
[360305494,1746735049828,-342.31643738,0.00029469,7]
[360305495,1746735049839,-22932.2740876,0.0002947,3]
[360305496,1746735049848,-2039.6437,0.00029473,2]
[360305497,1746735049859,-365.13296534,0.00029473,2]
[360305498,1746735049870,-969.961703,0.00029473,7]
[360305499,1746735049882,-969.961703,0.00029473,7]
[360305500,1746735049891,-524.67713,0.00029479,7]
[360305501,1746735049900,-524.67713,0.00029479,7]
[360305502,1746735049910,-592.1361,0.00029479,2]
[360305503,1746735049919,-160.47047564,0.00029479,2]
[360305504,1746735049930,-185.56360794,0.00029479,2]
[360305505,1746735049940,-240.50022889,0.00029483,2]
[360305506,1746735049950,-151.0,0.00029489,7]
[360305507,1746735049960,-151.0,0.0002949,7]
[360305508,1746735049971,-282.712471,0.0002949,7]
[360305509,1746735049980,-151.0,0.0002949,7]
[360305510,1746735049991,-2106.901667,0.0002949,7]
[360305511,1746735050001,-2106.901667,0.0002949,7]
[360305512,1746735050011,-151.0,0.0002949,7]
[360305513,1746735050021,-704.594677,0.0002949,7]
[360305514,1746735050031,-151.0,0.0002949,7]
[360305515,1746735050041,-704.594677,0.0002949,7]
[360305516,1746735050051,-1151.861518,0.0002949,7]
[360305517,1746735050061,-1151.861518,0.0002949,7]
[360305518,1746735050070,-286.238583,0.0002949,7]
[360305519,1746735050081,-286.238583,0.0002949,7]
[360305520,1746735050091,-163.009931,0.0002949,7]
[360305521,1746735050101,-163.009931,0.0002949,7]
[360305522,1746735050111,-150.0,0.00029495,7]
[360305523,1746735050122,-342.31643738,0.00029499,7]
[360305524,1746735050131,-1000.0,0.000295,4]
[360305525,1746735050140,-1000.0,0.000295,5]
[360305526,1746735050149,-1000.0,0.000295,6]
[360305527,1746735050160,-1000.0,0.000295,7]
[360305528,1746735050169,-1000.0,0.000295,8]
[360305529,1746735050178,-1020.0,0.000295,7]
[360305530,1746735050188,-1000.0,0.000295,7]
[360305531,1746735050197,-1000.0,0.000295,6]
[360305532,1746735050207,-1000.0,0.000295,5]
[360305533,1746735050216,-1000.0,0.000295,4]
[360305534,1746735050225,-1000.0,0.000295,4]
[360305535,1746735050234,-199.95928,0.000295,7]
[360305536,1746735050245,-199.95928,0.000295,7]
[360305537,1746735050255,-151.0,0.000295,7]
[360305538,1746735050264,-263.88703,0.000295,7]
[360305539,1746735050274,-263.88703,0.000295,7]
[360305540,1746735050284,-150.0,0.00029511,7]
[360305541,1746735050293,-150.0,0.00029526,7]
[360305542,1746735050303,-150.0,0.00029529,7]
[360305543,1746735050312,-342.31643738,0.00029529,7]
[360305544,1746735050322,-28937.7977649,0.00029539,3]
[360305545,1746735050332,-22932.2740876,0.00029539,3]
[360305546,1746735050342,-28937.7977649,0.00029543,3]
[360305547,1746735050352,-22932.2740876,0.00029543,3]
[360305548,1746735050362,-28937.7977649,0.00029545,3]
[360305549,1746735050371,-22932.2740876,0.00029545,3]
[360305550,1746735050381,-22932.2740876,0.00029549,3]
[360305551,1746735050390,-28937.7977649,0.00029553,3]
[360305552,1746735050400,-22932.2740876,0.00029554,3]
[360305553,1746735050411,-28937.7977649,0.00029554,3]
[360305554,1746735050420,-22932.2740876,0.00029554,3]
[360305555,1746735050430,-150.0,0.00029558,7]
[360305556,1746735050439,-500.0,0.00029559,10]
[360305557,1746735050448,-342.31643738,0.00029559,7]
[360305558,1746735050458,-151.0,0.00029563,7]
[360305559,1746735050467,-151.0,0.00029563,7]
[360305560,1746735050476,-2106.901667,0.00029563,7]
[360305561,1746735050485,-151.0,0.00029563,7]
[360305562,1746735050495,-2106.901667,0.00029563,7]
[360305563,1746735050504,-151.0,0.00029563,7]
[360305564,1746735050513,-704.594677,0.00029563,7]
[360305565,1746735050523,-151.0,0.00029563,7]
[360305566,1746735050860,-704.594677,0.00029563,7]
[360305567,1746735050880,-524.67713,0.00029563,7]
[360305568,1746735050890,-524.67713,0.00029563,7]
[360305569,1746735050900,-1151.861518,0.00029563,7]
[360305570,1746735050910,-1151.861518,0.00029563,7]
[360305571,1746735050920,-969.961703,0.00029563,7]
[360305572,1746735050931,-969.961703,0.00029563,7]
[360305573,1746735050940,-243.363729,0.00029563,7]
[360305574,1746735050949,-243.363729,0.00029563,7]
[360305575,1746735050957,-286.238583,0.00029563,7]
[360305576,1746735050965,-286.238583,0.00029563,7]
[360305577,1746735050973,-163.009931,0.00029563,7]
[360305578,1746735050981,-163.009931,0.00029563,7]
[360305579,1746735050989,-500.0,0.00029563,10]
[360305580,1746735050997,-22932.2740876,0.00029564,3]
[360305581,1746735051006,-258.72,0.00029564,2]
[360305582,1746735051014,-151.0,0.00029565,7]
[360305583,1746735051022,-151.0,0.00029565,7]
[360305584,1746735051031,-1522.180936,0.00029565,7]
[360305585,1746735051040,-2106.901667,0.00029565,7]
[360305586,1746735051050,-151.0,0.00029565,7]
[360305587,1746735051061,-2106.901667,0.00029565,7]
[360305588,1746735051071,-151.0,0.00029565,7]
[360305589,1746735051086,-704.594677,0.00029565,7]
[360305590,1746735051096,-292.132509,0.00029565,7]
[360305591,1746735051107,-704.594677,0.00029565,7]
[360305592,1746735051118,-524.67713,0.00029565,7]
[360305593,1746735051129,-524.67713,0.00029565,7]
[360305594,1746735051140,-1151.861518,0.00029565,7]
[360305595,1746735051150,-1151.861518,0.00029565,7]
[360305596,1746735051160,-969.961703,0.00029565,7]
[360305597,1746735051170,-969.961703,0.00029565,7]
[360305598,1746735051179,-243.363729,0.00029565,7]
[360305599,1746735051190,-243.363729,0.00029565,7]
[360305600,1746735051199,-286.238583,0.00029565,7]
[360305601,1746735051208,-286.238583,0.00029565,7]
[360305602,1746735051217,-163.009931,0.00029565,7]
[360305603,1746735051227,-163.009931,0.00029565,7]
[360305604,1746735051236,-28937.7977649,0.00029572,3]
[360305605,1746735051245,-175.30845,0.00029572,7]
[360305606,1746735051255,-151.0,0.00029572,7]
[360305607,1746735051264,-151.0,0.00029572,7]
[360305608,1746735051273,-151.0,0.00029572,7]
[360305609,1746735051282,-152.723621,0.00029572,7]
[360305610,1746735051291,-151.0,0.00029572,7]
[360305611,1746735051301,-1035.50121157,0.00029572,15]
[360305612,1746735051311,-311.524396,0.00029572,7]
[360305613,1746735051320,-311.524396,0.00029572,7]
[360305614,1746735051330,-199.95928,0.00029572,7]
[360305615,1746735051339,-199.95928,0.00029572,7]
[360305616,1746735051348,-151.0,0.00029572,7]
[360305617,1746735051358,-365.77768,0.00029572,7]
[360305618,1746735051367,-365.77768,0.00029572,7]
[360305619,1746735051376,-263.88703,0.00029572,7]
[360305620,1746735051386,-263.88703,0.00029572,7]
[360305621,1746735051395,-151.0,0.00029572,7]
[360305622,1746735051405,-152.398009,0.00029573,7]
[360305623,1746735051414,-151.0,0.00029573,7]
[360305624,1746735051423,-151.0,0.00029573,7]
[360305625,1746735051433,-151.0,0.00029573,7]
[360305626,1746735051442,-151.0,0.00029573,7]
[360305627,1746735051451,-151.0,0.00029573,7]
[360305628,1746735051461,-151.0,0.00029573,7]
[360305629,1746735051470,-151.0,0.00029573,7]
[360305630,1746735051480,-151.0,0.00029573,7]
[360305631,1746735051489,-151.0,0.00029573,7]
[360305632,1746735051499,-311.524396,0.00029573,7]
[360305633,1746735051508,-311.524396,0.00029573,7]
[360305634,1746735051517,-199.95928,0.00029573,7]
[360305635,1746735051527,-199.95928,0.00029573,7]
[360305636,1746735051536,-151.0,0.00029573,7]
[360305637,1746735051545,-151.0,0.00029573,7]
[360305638,1746735051555,-365.77768,0.00029573,7]
[360305639,1746735051564,-151.0,0.00029573,7]
[360305640,1746735051573,-365.77768,0.00029573,7]
[360305641,1746735051582,-263.88703,0.00029573,7]
[360305642,1746735051591,-263.88703,0.00029573,7]
[360305643,1746735051600,-151.0,0.00029573,7]
[360305644,1746735051610,-1035.50121157,0.00029574,15]
[360305645,1746735051619,-151.0,0.00029574,7]
[360305646,1746735051628,-151.0,0.00029574,7]
[360305647,1746735051637,-1522.180946,0.00029574,7]
[360305648,1746735051646,-2106.901667,0.00029574,7]
[360305649,1746735051656,-151.0,0.00029574,7]
[360305650,1746735051665,-151.0,0.00029574,7]
[360305651,1746735051674,-2106.901669,0.00029574,7]
[360305652,1746735051683,-151.0,0.00029574,7]
[360305653,1746735051694,-704.594677,0.00029574,7]
[360305654,1746735051705,-704.594679,0.00029574,7]
[360305655,1746735051716,-524.67713,0.00029574,7]
[360305656,1746735051726,-524.677127,0.00029574,7]
[360305657,1746735051735,-1151.861518,0.00029574,7]
[360305658,1746735051746,-1151.861528,0.00029574,7]
[360305659,1746735051756,-969.961703,0.00029574,7]
[360305660,1746735051766,-969.961695,0.00029574,7]
[360305661,1746735051775,-243.363729,0.00029574,7]
[360305662,1746735051785,-243.363729,0.00029574,7]
[360305663,1746735051795,-243.363729,0.00029574,7]
[360305664,1746735051806,-243.363726,0.00029574,7]
[360305665,1746735051815,-286.238583,0.00029574,7]
[360305666,1746735051825,-286.238577,0.00029574,7]
[360305667,1746735051835,-500.0,0.00029574,10]
[360305668,1746735051846,-163.009931,0.00029574,7]
[360305669,1746735051856,-163.009924,0.00029574,7]
[360305670,1746735051865,-199.95928,0.00029578,7]
[360305671,1746735051874,-199.95928,0.00029578,7]
[360305672,1746735051884,-151.0,0.00029578,7]
[360305673,1746735051894,-263.88703,0.00029578,7]
[360305674,1746735051903,-263.88703,0.00029578,7]
[360305675,1746735051913,-151.0,0.00029579,7]
[360305676,1746735051922,-151.0,0.00029579,7]
[360305677,1746735051931,-151.0,0.00029579,7]
[360305678,1746735051940,-151.0,0.00029579,7]
[360305679,1746735051950,-151.0,0.00029579,7]
[360305680,1746735051959,-151.0,0.00029579,7]
[360305681,1746735051969,-151.0,0.00029579,7]
[360305682,1746735051978,-151.0,0.00029579,7]
[360305683,1746735051987,-22932.2740876,0.00029579,3]
[360305684,1746735051996,-151.0,0.00029582,7]
[360305685,1746735052006,-151.0,0.00029582,7]
[360305686,1746735052015,-151.0,0.00029582,7]
[360305687,1746735052025,-255.51258,0.00029582,7]
[360305688,1746735052034,-255.51258,0.00029582,7]
[360305689,1746735052043,-151.0,0.00029582,7]
[360305690,1746735052055,-161.491075,0.00029582,7]
[360305691,1746735052064,-311.524396,0.00029582,7]
[360305692,1746735052073,-311.524396,0.00029582,7]
[360305693,1746735052085,-365.77768,0.00029582,7]
[360305694,1746735052095,-365.77768,0.00029582,7]
[360305695,1746735052104,-151.0,0.00029583,7]
[360305696,1746735052114,-201.631797,0.00029583,7]
[360305697,1746735052124,-151.0,0.00029583,7]
[360305698,1746735052133,-151.0,0.00029583,7]
[360305699,1746735052142,-168.616414,0.00029583,7]
[360305700,1746735052151,-151.0,0.00029583,7]
[360305701,1746735052161,-151.0,0.00029583,7]
[360305702,1746735052171,-151.0,0.00029583,7]
[360305703,1746735052180,-151.0,0.00029583,7]
[360305704,1746735052190,-151.0,0.00029583,7]
[360305705,1746735052199,-151.0,0.00029583,7]
[360305706,1746735052208,-255.51258,0.00029583,7]
[360305707,1746735052218,-255.51258,0.00029583,7]
[360305708,1746735052228,-151.0,0.00029583,7]
[360305709,1746735052237,-151.0,0.00029583,7]
[360305710,1746735052247,-500.0,0.00029583,10]
[360305711,1746735052257,-1035.50121157,0.00029583,15]
[360305712,1746735052267,-151.0,0.00029583,7]
[360305713,1746735052276,-151.0,0.00029583,7]
[360305714,1746735052285,-500.0,0.00029583,10]
[360305715,1746735052295,-151.0,0.00029584,7]
[360305716,1746735052305,-151.0,0.00029584,7]
[360305717,1746735052317,-151.0,0.00029584,7]
[360305718,1746735052326,-151.0,0.00029584,7]
[360305719,1746735052336,-151.0,0.00029584,7]
[360305720,1746735052346,-151.0,0.00029584,7]
[360305721,1746735052355,-151.0,0.00029584,7]
[360305722,1746735052366,-151.0,0.00029584,7]
[360305723,1746735052376,-311.524396,0.00029584,7]
[360305724,1746735052386,-311.524396,0.00029584,7]
[360305725,1746735052395,-199.95928,0.00029584,7]
[360305726,1746735052405,-199.95928,0.00029584,7]
[360305727,1746735052414,-151.0,0.00029584,7]
[360305728,1746735052423,-151.0,0.00029584,7]
[360305729,1746735052433,-151.0,0.00029584,7]
[360305730,1746735052442,-365.77768,0.00029584,7]
[360305731,1746735052451,-365.77768,0.00029584,7]
[360305732,1746735052461,-263.88703,0.00029584,7]
[360305733,1746735052471,-263.88703,0.00029584,7]
[360305734,1746735052481,-321.13,0.00029587,2]
[360305735,1746735052491,-500.0,0.00029588,10]
[360305736,1746735052500,-1035.50121157,0.00029588,15]
[360305737,1746735052510,-1035.50121157,0.00029588,15]
[360305738,1746735052519,-300.0,0.00029588,10]
[360305739,1746735052528,-151.0,0.00029589,7]
[360305740,1746735052539,-255.51258,0.00029589,7]
[360305741,1746735052548,-255.51258,0.00029589,7]
[360305742,1746735052560,-151.0,0.00029589,7]
[360305743,1746735052569,-311.524396,0.00029589,7]
[360305744,1746735052579,-311.524396,0.00029589,7]
[360305745,1746735052589,-199.95928,0.00029589,7]
[360305746,1746735052598,-199.95928,0.00029589,7]
[360305747,1746735052609,-365.77768,0.00029589,7]
[360305748,1746735052620,-365.77768,0.00029589,7]
[360305749,1746735052629,-263.88703,0.00029589,7]
[360305750,1746735052639,-263.88703,0.00029589,7]
[360305751,1746735052649,-202.0,0.00029589,2]
[360305752,1746735052658,-202.0,0.00029589,2]
[360305753,1746735052668,-202.0,0.00029589,2]
[360305754,1746735052678,-202.0,0.00029589,2]
[360305755,1746735052687,-202.0,0.00029589,2]
[360305756,1746735052696,-202.0,0.00029589,2]
[360305757,1746735052706,-202.0,0.00029589,2]
[360305758,1746735052715,-202.0,0.00029589,2]
[360305759,1746735052724,-202.0,0.00029589,2]
[360305760,1746735052734,-202.0,0.00029589,2]
[360305761,1746735052743,-361.0,0.00029589,2]
[360305762,1746735052752,-361.0,0.00029589,2]
[360305763,1746735052762,-361.0,0.00029589,2]
[360305764,1746735052772,-361.0,0.00029589,2]
[360305765,1746735052782,-361.0,0.00029589,2]
[360305766,1746735052791,-361.0,0.00029589,2]
[360305767,1746735052800,-361.0,0.00029589,2]
[360305768,1746735052811,-361.0,0.00029589,2]
[360305769,1746735052820,-361.0,0.00029589,2]
[360305770,1746735052830,-361.0,0.00029589,2]
[360305771,1746735052839,-361.0,0.00029589,2]
[360305772,1746735052850,-361.0,0.00029589,2]
[360305773,1746735052859,-361.0,0.00029589,2]
[360305774,1746735052870,-361.0,0.00029589,2]
[360305775,1746735052880,-361.0,0.00029589,2]
[360305776,1746735052892,-361.0,0.00029589,2]
[360305777,1746735052901,-361.0,0.00029589,2]
[360305778,1746735052910,-361.0,0.00029589,2]
[360305779,1746735052919,-361.0,0.00029589,2]
[360305780,1746735052930,-361.0,0.00029589,2]
[360305781,1746735052940,-361.0,0.00029589,2]
[360305782,1746735052950,-361.0,0.00029589,2]
[360305783,1746735052959,-361.0,0.00029589,2]
[360305784,1746735052970,-202.0,0.00029589,2]
[360305785,1746735052979,-202.0,0.00029589,2]
[360305786,1746735052988,-202.0,0.00029589,2]
[360305787,1746735052999,-202.0,0.00029589,2]
[360305788,1746735053010,-202.0,0.00029589,2]
[360305789,1746735053021,-202.0,0.00029589,2]
[360305790,1746735053031,-202.0,0.00029589,2]
[360305791,1746735053043,-202.0,0.00029589,2]
[360305792,1746735053052,-202.0,0.00029589,2]
[360305793,1746735053062,-202.0,0.00029589,2]
[360305794,1746735053071,-202.0,0.00029589,2]
[360305795,1746735053086,-202.0,0.00029589,2]
[360305796,1746735053096,-202.0,0.00029589,2]
[360305797,1746735053106,-202.0,0.00029589,2]
[360305798,1746735053115,-202.0,0.00029589,2]
[360305799,1746735053125,-202.0,0.00029589,2]
[360305800,1746735053135,-202.0,0.00029589,2]
[360305801,1746735053145,-205.58648631,0.00029589,7]
[360305802,1746735053156,-342.31643738,0.00029589,7]
[360305803,1746735053166,-296.96845115,0.00029589,7]
[360305804,1746735053175,-157.90279729,0.00029589,7]
[360305805,1746735053186,-183.70688032,0.00029589,7]
[360305806,1746735053196,-188.12150847,0.00029589,7]
[360305807,1746735053206,-240.68740035,0.00029589,7]
[360305808,1746735053216,-224.81160481,0.00029589,7]
[360305809,1746735053226,-288.38552302,0.00029589,7]
[360305810,1746735053235,-165.49443441,0.00029589,7]
[360305811,1746735053244,-210.6768981,0.00029589,7]
[360305812,1746735053254,-227.951778,0.0002959,7]